Cogmind - Beta 16 @@@ ROGUE MODE // 2026.01.03 @ 13:15:11 Player: leto Result: Destroyed by Y-45 Defender with Heavy Assault Rifle Performance ------------- Evolutions (1) 500 Regions Visited (3) 600 Robots Destroyed (54) 270 Value Destroyed (1047) 1047 Prototype IDs (2) 40 Alien Tech Used (0) 0 Bonus (0) 0 TOTAL SCORE: 2457 Bonus ------- None Cogmind --------- Core Integrity 0/400 Matter 280/300 Energy 145/250 System Corruption 4% Temperature Cool (0) Movement Core (550) Ox10 Location -9/Materials Parts ------- > --- POWER (1) -------- Ion Engine > --- PROPULSION (3) --- (None) > --- UTILITY (3) ------ Small Storage Unit Large Storage Unit > --- WEAPON (2) ------- Katana > --- INVENTORY (15) --- Ion Engine Flight Unit Flight Unit Flight Unit Flight Unit Large Storage Unit Authchip [R/Combat] Authchip [R/Combat] Authchip [R/Combat] Authchip [Propulsion] Mini Grenade Launcher Datajack Peak State ------------ > --- POWER ------------ Ion Engine > --- PROPULSION ------- Light Treads Light Treads Improved Flight Unit > --- UTILITY ---------- Small Storage Unit Large Storage Unit > --- WEAPON ----------- Medium Laser Beam Cannon > --- INVENTORY -------- Ion Engine Ion Engine Flight Unit Flight Unit Flight Unit Flight Unit Small Storage Unit Large Storage Unit Hardened Light Armor Plating Hardened Light Armor Plating Authchip [R/Combat] Authchip [R/Combat] Authchip [R/Combat] Authchip [Propulsion] Grenade Launcher [Rating: 12] Favorites ----------- Power Ion Engine Engine Ion Engine Propulsion Light Treads Treads Light Treads Flight Unit Improved Flight Unit Utility Large Storage Unit Storage Large Storage Unit Protection Hardened Light Armor Plating Weapon EM Pulse Gun Energy Gun EM Pulse Gun Energy Cannon Beam Cannon Ballistic Gun Light Assault Rifle Launcher Mini Grenade Launcher Slashing Weapon Katana Build | -11 -10 -10 -9 ------- Run | Yrd Mat Min Mat Slots Evolved 2 | . . . 2 Power . | . . . . Propulsion 1 | . . . 1 Utility 1 | . . . 1 Weapon . | . . . . Parts Attached 34 | 7 13 . 14 Power 9 | 1 4 . 4 Engine 9 | 1 4 . 4 Core . | . . . . Reactor . | . . . . Propulsion 4 | 2 1 . 1 Treads 3 | 2 1 . . Leg . | . . . . Wheel . | . . . . Hover . | . . . . Flight 1 | . . . 1 Utility 8 | 2 4 . 2 Device . | . . . . Storage 6 | 2 4 . . Processor . | . . . . Hackware . | . . . . Protection 2 | . . . 2 Artifact . | . . . . Weapon 13 | 2 4 . 7 Energy Gun 6 | 2 3 . 1 Energy Cannon 1 | . 1 . . Ballistic Gun 3 | . . . 3 Ballistic Cannon . | . . . . Launcher 2 | . . . 2 Special Weapon . | . . . . Impact Weapon . | . . . . Slashing Weapon 1 | . . . 1 Piercing Weapon . | . . . . Special Melee Weapon . | . . . . Unidentified Prototypes 2 | . . . 2 Parts Lost 12 | . 5 . 7 Power 2 | . 1 . 1 Propulsion 3 | . 1 . 2 Utility 1 | . . . 1 Weapon 6 | . 3 . 3 Highest Loss Streak 4 | . 2 . 4 To Critical Strikes . | . . . . Average Backups 13 | . 13 15 14 Power 1 | . 1 2 1 Propulsion 4 | . 4 4 4 Utility 6 | . 6 8 6 Weapon 1 | . 1 1 1 Tool/Special . | . . . . Unused Backups 15 | . 5 1 9 Power 1 | . 1 . . Propulsion 7 | . 2 1 4 Utility 6 | . 2 . 4 Weapon . | . . . . Tool/Special 1 | . . . 1 Average Slot Usage (%) 83 | . 95 100 50 Engine 11 | . 14 14 5 Treads 20 | . 27 28 1 Storage 26 | . 28 28 22 Protection 1 | . . . 4 Energy Gun 16 | . 20 14 5 Energy Cannon 3 | . 2 14 1 Ballistic Gun 1 | . . . 4 Slashing Weapon 1 | . . . 4 Peak Build Rating 12 | 7 9 9 12 Average Rating 8 | 5 8 9 8 On Entrance 6 | . 7 9 9 Avg Prop Armor Cover (%) . | . . . . Naked Turns . | . . . . Heaviest Build 109 | 19 109 35 42 Greatest Support 40 | 40 40 40 40 Greatest Overweight (x) 13 | . 2 . 13 Average Overweight (x) 1 | . . . 8 Largest Inventory Capacity 25 | 8 25 15 15 Average Capacity 14 | 6 14 15 15 Most Carried 15 | 1 15 15 15 Average Carried 13 | . 13 15 14 Final Capacity 15 | 8 15 15 15 Final Carried 15 | 1 15 15 12 Class Distribution -------------------- 100% | Mutant Dominant Class ---------------- Mutant | -10/Materials Mutant | -10/Mines Mutant | -9/Materials Resources | -11 -10 -10 -9 ----------- Run | Yrd Mat Min Mat Matter Collected 627 | 235 183 . 209 Remotely . | . . . . Salvage Created 1637 | 64 1080 146 347 Parts 106 | 3 75 5 23 Haulers Intercepted 2 | . 2 . . Recyclers Shooed 1 | . . . 1 Parts Field Recycled . | . . . . Retrieved Matter . | . . . . Parts Self-Destructed . | . . . . Prevented . | . . . . Parts Restored . | . . . . Kills | -11 -10 -10 -9 ------- Run | Yrd Mat Min Mat Combat Hostiles Destroyed 35 | . 21 5 9 Guns 20 | . 12 3 5 Cannons 7 | . 3 2 2 AOE 8 | . 6 . 2 Classes Destroyed 11 | 2 7 . 2 Worker 4 | . 4 . . Builder 1 | . 1 . . Tunneler 2 | 1 1 . . Hauler 2 | . 2 . . Recycler 3 | 1 1 . 1 Operator 3 | . 2 . 1 Watcher 4 | . 3 . 1 Swarmer 15 | . 8 3 4 Grunt 18 | . 13 2 3 Duelist 1 | . . . 1 Sentry 1 | . . . 1 Best Kill Streak 7 | 1 7 3 5 Combat Bots Only 7 | . 7 3 5 Max Kills in Single Turn 4 | 1 4 1 2 Gunslinging 1 | . 1 . . Exploded 2 | . 2 . 1 Melee . | . . . . Uniques/NPCs Destroyed . | . . . . Combat | -11 -10 -10 -9 -------- Run | Yrd Mat Min Mat Hostile Shots Fired 208 | . 78 22 108 Missed 45 | . 17 7 21 Hits 163 | . 61 15 87 Melee 11 | . . . 11 Projectile 152 | . 61 15 76 Critical Strikes 4 | . . . 4 Damage Taken 2336 | 29 749 152 1406 Core 567 | . 128 27 412 Absorbed by Shields . | . . . . Core Remaining (%) 69 | 100 . 38 . Volleys Fired 142 | 1 97 9 35 Largest 2 | 2 2 2 2 Hottest 110 | 80 110 110 110 Shots Fired 231 | 2 153 18 58 Gun 189 | 2 133 9 45 Cannon 38 | . 20 9 9 Launcher 4 | . . . 4 Special . | . . . . Kinetic 19 | . . . 19 Thermal 118 | . 65 18 35 Explosive 4 | . . . 4 Electromagnetic 90 | 2 88 . . Robot Hit Streak 14 | 2 11 10 14 Robot Miss Streak 7 | . 7 2 4 Penetration Max . | . . . . Secondary Targets 4 | . 2 . 2 Max Gunslinging Chain 1 | . 1 . 1 Shots Hit Robots 128 | 2 75 12 39 Core Hits 76 | 1 47 8 20 Critical Kills . | . . . . Critical Parts Destroyed 1 | . . . 1 Critical Strikes 6 | . 2 1 3 Burn 4 | . 1 1 2 Destroy 1 | . . . 1 Corrupt 1 | . 1 . . Melee Attacks 4 | . . . 4 Impact . | . . . . Slashing 4 | . . . 4 Piercing . | . . . . Sneak Attacks 1 | . . . 1 Combat Hostiles . | . . . . Follow-up Attacks . | . . . . Damage Inflicted 2505 | 59 1536 174 736 Guns 1402 | 12 979 86 325 Cannons 259 | . 120 88 51 Explosions 640 | 44 409 . 187 Melee 173 | . . . 173 Ramming 31 | 3 28 . . Kinetic 127 | . . . 127 Thermal 1220 | 44 753 174 249 Explosive 187 | . . . 187 Electromagnetic 767 | 12 755 . . Impact . | . . . . Slashing 173 | . . . 173 Piercing . | . . . . Highest Corruption 4 | . . . 4 Average Corruption 4 | . . . 4 Corruption Purged . | . . . . Corruption Blocked . | . . . . Effects 22 | . . . 22 Message Errors 4 | . . . 4 Matter Fused 6 | . . . 6 Heat Flow Errors 2 | . . . 2 Energy Discharges 3 | . . . 3 Parts Rejected 1 | . . . 1 Data Loss (minor) 4 | . . . 4 Data Loss (major) 1 | . . . 1 Misfires 1 | . . . 1 Overload Shots . | . . . . Overflow Damage 32 | . 32 . . Projectiles . | . . . . Explosions 32 | . 32 . . Melee . | . . . . Knockbacks . | . . . . Impact . | . . . . Kinetic . | . . . . Secondary . | . . . . Self-Inflicted Damage 296 | 29 146 . 121 Shots 8 | 1 4 . 3 Rammed 6 | . 6 . . Targets Rammed 8 | 1 7 . . Kicked . | . . . . Crushed 2 | 1 1 . . Highest Temperature 379 | 30 336 234 379 Average Temperature 98 | 21 85 110 128 Received Heat Transfer 540 | . 201 42 297 Effects 2 | . 2 . . Energy Bleed 1 | . 1 . . Damage (minor) 1 | . 1 . . Siege Activations . | . . . . Martial Activations . | . . . . Shielding Activations . | . . . . Robots Disrupted . | . . . . Combat Hostiles . | . . . . Robots Corrupted 1 | . 1 . . Combat Hostiles . | . . . . Parts Fried . | . . . . Impact Corruptions . | . . . . Robots Melted . | . . . . Combat Hostiles . | . . . . Parts Melted 7 | . 1 4 2 Heat Transferred 2831 | 50 1449 518 814 Parts Sabotaged . | . . . . Parts Stolen . | . . . . Parts Stripped . | . . . . Power Chain Reactions 8 | 1 7 . . Alert | -11 -10 -10 -9 ------- Run | Yrd Mat Min Mat Maximum Alert Level . | . . . . Low Security (%) 100 | 100 100 100 100 Level 1 . | . . . . Level 2 . | . . . . Level 3 . | . . . . Level 4 . | . . . . Level 5 . | . . . . High Security . | . . . . Max Security . | . . . . Peak Influence 179 | 5 179 85 110 Initial 25 | . . 25 17 Average 43 | 1 49 46 31 Influence Increases 1099 | 10 615 135 339 Destroy 0b10 Robot/C 700 | . 420 100 180 Destroy 0b10 Robot/NC 95 | 10 70 . 15 Destroy Leader 162 | . 100 20 42 Successful Hack 12 | . 6 . 6 Disable Machine 15 | . . . 15 Destroy Structure 40 | . 19 . 21 Partial Spotted 15 | . . . 15 Lose Combat Pursuer 60 | . . 15 45 Influence Decreases 1099 | 10 549 156 384 Entered New Map 69 | . . 41 28 Time Decay 930 | 10 499 115 306 Lost Part 100 | . 50 . 50 Squads Dispatched 6 | . 5 . 1 Investigation 3 | . 3 . . Extermination . | . . . . Reinforcement 3 | . 2 . 1 Assault . | . . . . Garrison . | . . . . Intercept . | . . . . Searches Triggered . | . . . . Construction Impeded . | . . . . Haulers Reinforced . | . . . . Active Scanning Responses . | . . . . Cargo Convoy Interrupts . | . . . . Stealth | -11 -10 -10 -9 --------- Run | Yrd Mat Min Mat Distress Signals 3 | . 2 . 1 Communications Jammed . | . . . . Distress Signals . | . . . . Times Spotted 58 | . 35 6 17 Peak Tracking Total 5 | . 5 3 5 Tactical Retreats 3 | . . 1 2 Traps | -11 -10 -10 -9 ------- Run | Yrd Mat Min Mat Traps Triggered 2 | . 2 . . Indirectly . | . . . . Trap Hack Attempts . | . . . . Triggered . | . . . . Disarmed . | . . . . Reprogrammed . | . . . . Reused . | . . . . Traps Extracted . | . . . . Installed . | . . . . Triggered . | . . . . Machines | -11 -10 -10 -9 ---------- Run | Yrd Mat Min Mat Machines Disabled 1 | . . . 1 Max in Single Turn 1 | . . . 1 Machines Repaired . | . . . . Machines Dismantled . | . . . . Machines Sabotaged . | . . . . Overloaded Fab Kills . | . . . . Hacking | -11 -10 -10 -9 --------- Run | Yrd Mat Min Mat Machines Accessed 6 | . 5 . 1 Terminals 6 | . 5 . 1 Fabricators . | . . . . Repair Stations . | . . . . Recycling Units . | . . . . Scanalyzers . | . . . . Garrison Access . | . . . . Total Hacks 12 | . 10 . 2 Successful 4 | . 2 . 2 Failed 8 | . 8 . . Catastrophic . | . . . . Database Lockouts . | . . . . Manual 13 | . 11 . 2 Terminals 12 | . 10 . 2 Fabricators . | . . . . Repair Stations . | . . . . Recycling Units . | . . . . Scanalyzers . | . . . . Garrison Access . | . . . . Terminal Hacks 1 | . 1 . . Unreport Threat 1 | . 1 . . Fabricator Hacks . | . . . . Repair Station Hacks . | . . . . Recycling Unit Hacks . | . . . . Scanalyzer . | . . . . Garrison Access Hacks . | . . . . Unauthorized Hacks 3 | . 1 . 2 Terminals 3 | . 1 . 2 Botnet 1 | . . . 1 Operators 2 | . 1 . 1 Fabricators . | . . . . Repair Stations . | . . . . Recycling Units . | . . . . Scanalyzers . | . . . . Garrison Access . | . . . . Data Cores Recovered . | . . . . Used . | . . . . Hacking Detections 3 | . 3 . . Full Trace Events 2 | . 2 . . Feedback Events . | . . . . Feedback Blocked . | . . . . Robot Schematics Acquired . | . . . . Robots Built . | . . . . Authchips . | . . . . Time . | . . . . Total Robot Build Rating . | . . . . Part Schematics Acquired . | . . . . Parts Built . | . . . . Authchips . | . . . . Time . | . . . . Total Part Build Rating . | . . . . Part Studies Acquired . | . . . . Parts Repaired . | . . . . Time . | . . . . Parts Recycled . | . . . . Recycled Matter . | . . . . Retrieved Matter . | . . . . Retrieved Components . | . . . . Parts Scanalyzed . | . . . . Part Schematics Acquired . | . . . . Parts Damaged . | . . . . Bothacking | -11 -10 -10 -9 ------------ Run | Yrd Mat Min Mat Used RIF Installer . | . . . . Robots Hacked . | . . . . Non-combat . | . . . . Combat . | . . . . Robot Hacks Applied . | . . . . Relay Couplers Released . | . . . . Fabnet Peak Effective % . | . . . . Robots Rewired . | . . . . Allies Hacked . | . . . . Hacks Repelled . | . . . . Allies | -11 -10 -10 -9 -------- Run | Yrd Mat Min Mat Total Allies . | . . . . Largest Group . | . . . . Highest-Rated Group . | . . . . Highest-Rated Ally . | . . . . Total Orders . | . . . . Ally Attacks . | . . . . Total Damage . | . . . . Kills . | . . . . Allies Corrupted . | . . . . Allies Melted . | . . . . Intel | -11 -10 -10 -9 ------- Run | Yrd Mat Min Mat Active Infowar (turns) . | . . . . Robot Analysis Total . | . . . . Derelict Logs Recovered . | . . . . Drone Launches . | . . . . Drone Recoveries . | . . . . Exploration | -11 -10 -10 -9 ------------- Run | Yrd Mat Min Mat Turns Passed 3641 | 87 2351 244 959 Spaces Moved 1298 | 47 951 133 167 Core 135 | 3 . . 132 Treads 1163 | 44 951 133 35 Legs . | . . . . Wheels . | . . . . Hover . | . . . . Flight . | . . . . Fastest Speed 50 | 50 160 160 160 Average Speed 234 | 152 205 160 485 Slowest Speed 700 | 160 320 160 700 Overloaded Moves . | . . . . Propulsion Burnouts . | . . . . Robots Hopped . | . . . . Potential Cave-ins . | . . . . Cave-ins Triggered . | . . . . Exploration Rate (%) 35 | 3 95 29 13 Regions Visited 3 Branch Regions 1 Pre-discovered Areas . | . . . . Known Exits Taken . | . . . . Unknown Exits Taken 3 | 1 1 1 . Scrap Searched . | . . . . Spaces Dug . | . . . . Terrain Destroyed 38 | . 17 . 21 Melee . | . . . . Projectile . | . . . . AOE 38 | . 17 . 21 Terrain Rammed . | . . . . Walls Destroyed . | . . . . Machines Disabled . | . . . . Actions | -11 -10 -10 -9 --------- Run | Yrd Mat Min Mat Total 1655 | 56 1197 148 254 Wait 119 | . 91 5 23 Move 1295 | 46 950 132 167 Hop . | . . . . Pick Up 26 | 1 21 1 3 Fast Attach 15 | 7 4 . 4 Attach 10 | . 4 . 6 Detach 2 | . 1 . 1 Swap 15 | . 9 . 6 Drop 19 | . 13 1 5 Fire 142 | 1 97 9 35 Melee 4 | . . . 4 Ram . | . . . . Kick . | . . . . Crush 8 | 1 7 . . Escape Stasis . | . . . . Rewire . | . . . . Trap . | . . . . Miscellaneous . | . . . . Route ------- -11/Scrapyard -10/Materials (discovered 5 exits: *Mat x3 / [*Min x2]) -10/Mines -9/Materials History --------- Turn | Location | Event 8 | -11/Scrapyard | Discovered new exit (range 15) 88 | -11/Scrapyard | Entered Materials 188 | -10/Materials | Destroyed 7 combat bots 314 | -10/Materials | Build established: Mutant 354 | -10/Materials | Discovered new exit (range 16) 865 | -10/Materials | Discovered new exit (range 16) 1167 | -10/Materials | Discovered new exit (range 15) 1728 | -10/Materials | Discovered new exit (range 3) 2293 | -10/Materials | Core integrity fell below 50% 2320 | -10/Materials | Discovered new exit (range 4) 2439 | -10/Materials | Entered Mines 2661 | -10/Mines | Discovered new exit (range 15) 2683 | -10/Mines | Entered Materials 2683 | -9/Materials | Evolved 2 slots: Propulsion x1, Utility x1 2801 | -9/Materials | Lost 4 parts (1p2n1w) 3205 | -9/Materials | Core integrity fell below 50% 3593 | -9/Materials | Core integrity fell below 20% 3642 | -9/Materials | Destroyed by Y-45 Defender with Heavy Assault Rifle Last Messages --------------- K-01 Serf collects debris. U-05 Engineer builds a Wall. K-01 Serf collects debris. System corrupted: Matter fused (-7). U-05 Engineer lays Concrete. Acquired 60 matter. U-05 Engineer lays Concrete. Sneak attack on A-02 Transporter. System corrupted: Component data lost. U-05 Engineer lays Concrete. System corrupted: Matter fused (-6). Acquired 6 matter. System corrupted: Component data lost. W-16 Scout sends out distress signal. S9VQ#VTMS#J2AYTQUY0R6